[Event "98th Caplin Hastings Masters 2024-25"]
[Site "Hastings"]
[Date "2025.01.01"]
[Round "7.6"]
[White "Vestby-Ellingsen, Mads"]
[Black "Kaasen, Tor Fredrik"]
[Result "0-1"]
[ECO "B45"]
[WhiteElo "2383"]
[BlackElo "2473"]
[Annotator "TA"]
[PlyCount "158"]
[EventDate "2024.12.23"]
[EventType "swiss"]
[EventCountry "ENG"]
[SourceTitle "playchess.com"]
[Source "ChessBase"]
[SourceQuality "1"]
[TimeControl "5400+30"]

{[%evp 84,158,-222,-573,-417,-346,-221,-250,-250,-237,-154,-174,-97,-97,-82,-558,-188,-175,0,-658,-639,-472,-105,-1042,-1042,-916,-631,-550,-972,-854,-809,-672,-11,-11,-11,-11,-11,-18,-18,-180,-180,-180,-180,-379,-350,-308,-180,-180,-180,-237,-180,-728,-180,-515,-180,-29942,-29944,-29943,-29944,-29937,-29940,-29952,-29953,-29953,-29952,-29965,-29966,-29965,-29968,-29967,-29969,-29968,-29970,-29967,-29969,-29962,-12366]} 1. e4 {[%emt 0:03:15]} c5 {[%emt 0:00:15]} 2. Nf3 {[%emt 0:00:14]} e6 {[%emt 0:00:14]} 3. d4 {[%emt 0:03:31]} cxd4 {[%emt 0:00:09]} 4. Nxd4 {[%emt 0:00:10]} Nf6 {[%emt 0:00:15]} 5. Nc3 {[%emt 0:00:26]} Nc6 {[%emt 0:00:16]} 6. Ndb5 {[%emt 0:03:00]} Bc5 {[%emt 0:03:12]} 7. Nd6+ {[%emt 0:05:03]} Ke7 {[%emt 0:00:28]} 8. Bf4 {[%emt 0:03:48]} e5 {[%emt 0:00:19]} 9. Nf5+ {[%emt 0:04:56]} Kf8 {[%emt 0:00:08]} 10. Bg5 {[%emt 0:07:48]} d6 {[%emt 0:00:53]} 11. Ne3 {[%emt 0:01:42]} Be6 {[%emt 0:05:16]} 12. Qd2 {[%emt 0:07:46]} h6 {[%emt 0:06:20]} 13. Bxf6 {[%emt 0:00:32]} Qxf6 {[%emt 0:00:09]} 14. Ncd5 {[%emt 0:05:25]} Qd8 {[%emt 0:03:28]} 15. O-O-O {[%emt 0:06:28]} Rc8 {[%emt 0:07:28]} 16. Kb1 {[%emt 0:00:56]} Ne7 {[%emt 0:03:05]} 17. f4 {[%emt 0:06:41]} Bxe3 {[%emt 0:07:31]} 18. Qxe3 {[%emt 0:00:54]} Bxd5 {[%emt 0:00:18]} 19. exd5 {[%emt 0:00:11]} exf4 {[%emt 0:01:45]} 20. Qxa7 {[%emt 0:03:00]} b6 {[%emt 0:16:03]} 21. Qa4 {[%emt 0:01:33]} g5 {[%emt 0:00:52]} 22. Qd4 {[%emt 0:03:51]} Ng6 {[%emt 0:05:36]} 23. h4 {[%emt 0:04:50]} Rg8 {[%emt 0:03:18]} 24. hxg5 {[%emt 0:02:07]} hxg5 {[%emt 0:01:12]} 25. Rh7 {[%emt 0:14:19]} Ne5 {[%emt 0:02:27]} 26. Bb5 {[%emt 0:02:04]} Rc5 {[%emt 0:04:49]} 27. a4 {[%emt 0:00:52]} Qf6 {[%emt 0:04:46]} 28. Rdh1 {[%emt 0:05:39]} Qf5 {[%emt 0:01:44]} 29. Qd1 {[%emt 0:01:21]} g4 {[%emt 0:07:31]} 30. b4 {[%emt 0:00:56]} Rc7 {[%emt 0:02:26]} 31. Bd3 {[%emt 0:00:06]} Nxd3 {[%emt 0:02:26]} 32. Qxd3 {[%emt 0:00:05]} Qxd3 {[%emt 0:00:40]} 33. cxd3 {[%emt 0:00:05]} f3 {[%emt 0:05:41]} 34. gxf3 {[%emt 0:00:51]} gxf3 {[%emt 0:00:03]} 35. Kb2 {[%emt 0:03:03]} Rg2+ {[%emt 0:02:02]} 36. Kb3 {[%emt 0:00:02]} Rd2 {[%emt 0:01:12]} 37. R7h4 {[%emt 0:00:52]} Rxd3+ {[%emt 0:00:14]} 38. Kb2 {[%emt 0:00:05]} Rd2+ {[%emt 0:01:15]} 39. Kb3 {[%emt 0:00:06]} Rxd5 {[%emt 0:00:05]} 40. Rf4 {[%emt 0:00:22]} Rd3+ {[%emt 0:00:11]} 41. Kb2 {[%emt 0:00:04]} d5 {[%emt 0:01:42]} 42. Rh5 {[%emt 0:01:59]} Rc4 {[%emt 0:00:54]} (42... d4 $142 43. a5) 43. Rf6 $2 {[%emt 0:00:28]} (43. Rhf5 Rxf4 44. Rxf4) 43... Rxb4+ {[%emt 0:01:30]} 44. Kc2 {[%emt 0:00:04]} Rdd4 {[%emt 0:00:44]} 45. Rhf5 {[%emt 0:00:05]} Rdc4+ {[%emt 0:00:11]} (45... Rxa4 46. Rxf7+ Ke8 47. Rxf3 $17) 46. Kd2 {[%emt 0:00:42]} Rb2+ {[%emt 0:00:19]} 47. Kd3 {[%emt 0:00:12]} Rc7 {[%emt 0:00:55]} (47... Rb3+ $19 48. Kd2 Rb2+ (48... Rxa4 $2 49. Rxf7+ Ke8 50. Kc2 $19) 49. Kd3 Rb3+) 48. Rxd5 $17 {[%emt 0:00:07]} Rb3+ {[%emt 0:00:47]} (48... Ra2 {simplifies} 49. Rxf3 Ra3+ 50. Ke2 Rxa4 51. Rb3 Rc6) 49. Kd4 $2 {[%emt 0:01:26][%mdl 8192]} (49. Kd2 $17) 49... Rb4+ $2 {[%emt 0:00:27]} (49... Ra7 50. Kc4 Ra3 (50... Rxa4+ $2 51. Kxb3 Re4 52. Rdf5 $18) 51. Rxb6 R7xa4+ 52. Rb4 Kg7 (52... Rxb4+ $2 53. Kxb4 Re3 54. Rd2 $19)) 50. Kd3 {[%emt 0:00:29]} Rb3+ $2 {[%emt 0:00:39]} (50... Rxa4 51. Rxb6 Ra3+ 52. Kd4 Rca7) 51. Kd4 $19 {[%emt 0:00:05]} Ra7 {[%emt 0:00:13]} 52. Kc4 {[%emt 0:01:09]} Rb1 $2 {[%emt 0:00:09]} (52... Rxa4+ $2 53. Kxb3 Ra7 54. Rxf3 $18 (54. Rxb6 f2 $18)) (52... Ra3 $19 {has better winning chances.} 53. Kb4 R7xa4+ (53... R3xa4+ $2 54. Kb3 $19) 54. Kb5 Ra5+ 55. Kc4 Ke7 (55... R3a4+ $2 56. Kb3 $19)) 53. Rd3 $2 {[%emt 0:00:43][%mdl 8192]} (53. Kc3 $17) 53... Rc7+ $19 {[%emt 0:01:25]} 54. Kd4 {[%emt 0:00:31]} Rd7+ {[%emt 0:00:14]} 55. Ke3 {[%emt 0:00:30]} Rxd3+ $1 {[%emt 0:00:53]} (55... Re1+ 56. Kf2 Rxd3 57. Kxe1 $17) 56. Kxd3 {[%emt 0:00:02]} Ke7 {[%emt 0:00:11]} 57. Rf4 {[%emt 0:00:27]} Ke6 $2 {[%emt 0:00:38]} (57... Rb2 $1 $19 {Strongly threatening ...f2.} 58. Kc3 Rf2) 58. Ke3 $1 $11 {[%emt 0:00:22]} Rb3+ {[%emt 0:00:07]} 59. Kf2 {[%emt 0:00:05]} f5 {[%emt 0:00:37]} 60. Rd4 {[%emt 0:01:01]} Ke5 {[%emt 0:00:07]} 61. Rd8 $2 {[%emt 0:00:06]} (61. Rc4 $11) 61... Ke4 $19 {[%emt 0:00:22]} 62. Re8+ {[%emt 0:01:26]} Kf4 {[%emt 0:00:18]} 63. Rb8 $2 {[%emt 0:00:30]} (63. Rh8) 63... Rb2+ $19 {[%emt 0:00:13]} 64. Kf1 {[%emt 0:00:05]} Ke3 {[%emt 0:00:39]} (64... f2 $142 {( -> ...Kf3)} 65. a5 b5) 65. Re8+ $19 {[%emt 0:00:05]} Kd4 {[%emt 0:00:07]} 66. Ra8 {[%emt 0:01:21]} (66. Rf8 {was worth a try.}) 66... Ra2 {[%emt 0:00:35]} 67. Rb8 $2 {[%emt 0:00:27]} (67. Ra7) 67... Kc5 $19 {[%emt 0:01:16]} (67... Rxa4 68. Kf2 $17) 68. Rc8+ $2 {[%emt 0:00:08]} (68. Ra8 {nothing else works.}) 68... Kd5 $2 {[%emt 0:00:45]} (68... Kd6 69. Rc4 Ke6) 69. Rb8 $2 {[%emt 0:00:44] [#]} (69. Ra8 $19) 69... Kc6 $1 {[%emt 0:00:21]} (69... Rxa4 70. Rxb6 Ke4 71. Rc6 $17) 70. Rc8+ {[%emt 0:00:24] [#]} Kb7 $1 {[%emt 0:00:05]} 71. Rc4 {[%emt 0:00:08]} Ka6 {[%emt 0:00:08]} 72. Rf4 {[%emt 0:00:54]} Ka5 {[%emt 0:00:44]} 73. Rxf3 {[%emt 0:00:34]} Rxa4 {[%emt 0:00:48]} ({Stronger than} 73... Kxa4 74. Rf4+ Ka3 75. Rxf5 $11) 74. Rxf5+ {[%emt 0:00:12]} b5 {[%emt 0:00:03]} 75. Ke2 {[%emt 0:00:19]} Rd4 {[%emt 0:00:23]} 76. Ke3 {[%emt 0:00:54]} Rd8 {[%emt 0:00:14]} 77. Rf1 {[%emt 0:00:28]} b4 {[%emt 0:00:04]} 78. Ra1+ {[%emt 0:00:31]} Kb5 {[%emt 0:00:04]} 79. Ra2 {[%emt 0:00:18]} Kc4 {[%emt 0:00:39]} (79... b3 $142 80. Ra7 Kb4 81. Rb7+ Kc3 82. Rc7+ Kb2 83. Rh7 Ra8 84. Kd3 Ka2 85. Rh2+ b2 86. Kc3 Rc8+ 87. Kd4 Ka3 (87... Ka1 $2 88. Rh6 $19) 88. Rh3+ Ka4 89. Rh7 Rb8 (89... b1=R $2 90. Rh2 $19) (89... b1=Q $2 90. Ra7+ Kb3 91. Rb7+ Kc2 92. Rxb1 $19) 90. Rh1 b1=Q (90... b1=R $2 91. Rh7 $19) 91. Rxb1 Rxb1 92. Ke4 Re1+ 93. Kf4 Kb3 94. Kg4 Rf1 95. Kh4 Rg1 96. Kh3 Kb2 97. Kh4 Kc3 98. Kh3 Kd4 99. Kh2 Rg6 100. Kh3 Ke5 101. Kh4 Kf4 102. Kh3 Rg8 103. Kh2 Kf3 104. Kh1 Kf2 105. Kh2 Rh8#) 0-1

[Event "98th Caplin Hastings Masters 2024-25"]
[Site "Hastings"]
[Date "2025.01.01"]
[Round "7.7"]
[White "Gormally, Daniel W"]
[Black "Li, Jack"]
[Result "1-0"]
[ECO "D85"]
[WhiteElo "2424"]
[BlackElo "1717"]
[Annotator "TA"]
[PlyCount "157"]
[EventDate "2024.12.23"]
[EventType "swiss"]
[EventCountry "ENG"]
[SourceTitle "playchess.com"]
[Source "ChessBase"]
[SourceQuality "1"]
[TimeControl "5400+30"]

{[%evp 23,157,0,17,0,0,0,0,0,0,0,0,0,0,6,0,0,0,0,0,0,0,0,0,0,2,0,0,1,15,8,13,8,10,8,10,0,6,8,1,8,12,8,11,0,12,7,6,0,11,10,16,16,11,16,18,14,28,12,16,8,67,45,54,54,61,50,51,40,40,11,49,43,32,13,27,15,90,53,58,50,51,50,39,33,65,65,65,65,65,65,65,61,66,66,68,59,52,55,62,41,111,104,123,73,73,0,137,104,86,83,78,79,124,115,157,182,520,499,420,133,134,143,202,202,202,202,202,202,202,202,584,406,29977,29978,29970,12836]} 1. d4 {[%emt 0:00:02]} Nf6 {[%emt 0:00:05]} 2. c4 {[%emt 0:00:05]} g6 {[%emt 0:00:04]} 3. Nc3 {[%emt 0:00:03]} d5 {[%emt 0:00:03]} 4. cxd5 {[%emt 0:00:04]} Nxd5 {[%emt 0:00:03]} 5. e4 {[%emt 0:00:05]} Nxc3 {[%emt 0:00:03]} 6. bxc3 {[%emt 0:00:04]} Bg7 {[%emt 0:00:04]} 7. Nf3 {[%emt 0:00:04]} c5 {[%emt 0:00:08]} 8. Rb1 {[%emt 0:00:21]} O-O {[%emt 0:00:15]} 9. Be2 {[%emt 0:00:05]} cxd4 {[%emt 0:00:08]} 10. cxd4 {[%emt 0:00:05]} Qa5+ {[%emt 0:00:03]} 11. Bd2 {[%emt 0:00:05]} Qxa2 {[%emt 0:00:06]} 12. O-O {[%emt 0:00:07]} Bg4 {[%emt 0:00:18]} 13. Rxb7 {[%emt 0:01:33]} Bxf3 {[%emt 0:00:42]} 14. Bxf3 {[%emt 0:00:25]} Bxd4 {[%emt 0:00:15]} 15. Bg5 {[%emt 0:01:24]} (15. e5 $5 Na6 $8 16. Rxe7 $11) 15... Rd8 {[%emt 0:29:11][%cal Od4f2]} 16. Qc1 {[%emt 0:02:18][%cal Oe4e5]} Na6 {[%emt 0:01:13]} 17. Bxe7 {[%emt 0:00:39][%cal Oe4e5]} Rac8 {[%emt 0:05:12]} 18. Qf4 {[%emt 0:01:19][%cal Oe4e5]} Nc5 $1 {[%emt 0:35:09]} 19. Bxc5 {[%emt 0:01:01]} Rxc5 {[%emt 0:04:17]} 20. Bd1 {[%emt 0:00:10][%cal Bf3d1,Bd1b3,Bb3d5][%mdl 32] Inhibits Rc2.} Be5 {[%emt 0:19:24]} 21. Qh4 {[%emt 0:00:17]} Rf8 {[%emt 0:00:38]} 22. Bb3 {[%emt 0:01:55]} Qa5 $1 {[%emt 0:02:19]} 23. Bd5 {[%emt 0:03:21]} Rc7 {[%emt 0:00:13] Prevents Qe7} 24. Rxc7 {[%emt 0:00:11]} Qxc7 {[%emt 0:00:13]} 25. g3 {[%emt 0:00:18]} Bd4 {[%emt 0:01:18]} 26. Qg5 {[%emt 0:03:57]} Qe5 {[%emt 0:00:26]} (26... Qb6 27. Qf4 Qf6 28. Qxf6 Bxf6 29. Rc1 Bd8) 27. Qd2 {[%emt 0:02:45]} (27. Qxe5 Bxe5 28. Rc1 Rd8 29. f4) 27... Kg7 {[%emt 0:00:37]} 28. Kg2 {[%emt 0:03:26]} Bb6 {[%emt 0:00:10]} 29. Rd1 {[%emt 0:01:08]} Rd8 {[%emt 0:01:41]} 30. f4 {[%emt 0:00:55]} Qe7 {[%emt 0:00:01]} 31. Qc3+ {[%emt 0:02:07]} Kg8 {[%emt 0:00:01] Black is weak on the light squares} (31... f6 32. h4 Qc7 33. Qxc7+ Bxc7 34. Rc1 Rd7) 32. Rd2 {[%emt 0:05:30]} Qc7 {[%emt 0:00:53]} 33. Qf6 {[%emt 0:03:47]} (33. Qxc7 Bxc7 34. Rc2 Bb6 35. Kf3) 33... Rf8 {[%emt 0:00:01]} 34. Bc6 {[%emt 0:07:18]} Rd8 {[%emt 0:00:48] Repels e5} (34... Be3 35. Rc2 Qb6 36. Qb2 Qxb2 37. Rxb2 Rc8) 35. Bd5 {[%emt 0:01:44]} (35. Rd5 {simplifies} Rxd5 36. Bxd5 Ba5 37. Kf3) 35... Rf8 {[%emt 0:00:00]} 36. Bb3 {[%emt 0:03:24]} Qb7 {[%emt 0:01:56]} 37. Re2 {[%emt 0:01:25]} Bd8 {[%emt 0:00:23]} 38. Qc3 {[%emt 0:01:24]} Bb6 {[%emt 0:00:04]} 39. Qf3 {[%emt 0:01:34]} (39. Bd5 Qc8 40. Qd3 Qc1 41. Rc2) 39... Re8 {[%emt 0:00:54]} (39... Kg7 40. Bd5 Qc8 41. Qa3 Qc5) 40. Bd5 {[%emt 0:01:00]} Qc7 {[%emt 0:00:30]} 41. Qb3 {[%emt 0:00:45]} Rf8 {[%emt 0:00:19]} (41... Rc8 $11) 42. Rc2 $14 {[%emt 0:02:29]} Qd7 {[%emt 0:00:00]} 43. Rc6 {[%emt 0:03:54]} Qg4 {[%emt 0:00:12]} 44. Qc2 {[%emt 0:00:34] Prevents Qe2+. Active counter play!} (44. Qd3 Rd8 45. Rf6 Rd7 46. h3) 44... Qd7 {[%emt 0:00:01]} 45. h3 {[%emt 0:02:03]} Qe7 {[%emt 0:00:21]} 46. Qc3 {[%emt 0:00:41]} Qd7 {[%emt 0:00:33]} 47. g4 {[%emt 0:05:27]} Qe7 {[%emt 0:01:16]} 48. g5 {[%emt 0:00:31]} (48. Kg3 Rd8 49. h4 Rd7 50. h5) 48... Rd8 {[%emt 0:00:08][%cal Od8d5]} 49. Qb3 {[%emt 0:05:46]} (49. Kf3 Rd7 50. Qf6 Qe8 51. Rc3) 49... Rd6 {[%emt 0:01:19]} (49... Rd7 $11 {keeps the balance.}) 50. Qb4 {[%emt 0:08:54]} Bc7 {[%emt 0:00:00]} 51. Qc5 {[%emt 0:09:25]} (51. e5 {keeps more tension.} Rd7 52. Qe4 Bxe5 53. fxe5 Qxg5+ 54. Kh1) 51... Rd7 {[%emt 0:00:24]} 52. Qxe7 {[%emt 0:00:32]} (52. Qxa7 Bxf4 53. Rc8+ Kg7 54. Qd4+ Be5 $17) 52... Rxe7 {[%emt 0:00:01][%mdl 4096] Endgame KRB-KRB} 53. Kf3 {[%emt 0:00:07]} Kf8 {[%emt 0:00:50]} 54. h4 {[%emt 0:01:56][%cal Bh3h4,Bh4h5][%mdl 32]} Bb6 {[%emt 0:00:09] [#]} 55. h5 $1 {[%emt 0:00:20]} Rc7 {[%emt 0:00:15]} 56. Rf6 {[%emt 0:00:04]} Rd7 {[%emt 0:01:10]} 57. Kg4 {[%emt 0:01:43]} Bd4 {[%emt 0:00:54]} 58. Rc6 {[%emt 0:00:30]} Bb6 $1 {[%emt 0:00:00]} 59. f5 {[%emt 0:03:47]} gxf5+ {[%emt 0:00:15]} 60. Kxf5 {[%emt 0:00:04]} Kg7 {[%emt 0:00:39]} 61. Bb3 {[%emt 0:02:49]} Bc7 {[%emt 0:01:30]} (61... Rd2 $14) 62. e5 $16 {[%emt 0:01:47]} Bb6 {[%emt 0:00:48]} 63. Rf6 {[%emt 0:02:33]} (63. e6 $142 fxe6+ 64. Rxe6 (64. Bxe6 Rd2 $14) 64... Rf7+ 65. Kg4) 63... Bd8 {[%emt 0:00:30]} 64. Rc6 {[%emt 0:01:37]} ({White should try} 64. e6 Rb7 (64... fxe6+ $2 65. Bxe6 h6 66. Rg6+ Kf8 67. Rg8+ Ke7 68. Bxd7 $18) 65. Bd5 (65. Rxf7+ Rxf7+ 66. exf7 a5 $14) (65. h6+ Kf8 $11) 65... fxe6+ 66. Rxe6 Rf7+ 67. Kg4) 64... Bb6 $1 {[%emt 0:00:01]} 65. h6+ {[%emt 0:01:28]} Kf8 {[%emt 0:00:08]} 66. e6 {[%emt 0:02:07]} fxe6+ {[%emt 0:00:07]} 67. Kxe6 {[%emt 0:00:19]} Re7+ {[%emt 0:01:10]} 68. Kf5 {[%emt 0:00:14]} Re2 {[%emt 0:01:03]} 69. Bc4 {[%emt 0:01:25]} Re7 $2 {[%emt 0:00:35]} (69... Rd2 70. Rf6+ Ke8) 70. Rf6+ $18 {[%emt 0:04:14]} Ke8 {[%emt 0:01:03]} 71. g6 $2 {[%emt 0:00:00]} (71. Bb5+ $18 {is the precise move to win.} Kd8 72. g6 hxg6+ 73. Kxg6) 71... hxg6+ $16 {[%emt 0:00:00]} 72. Kxg6 {[%emt 0:00:00]} ({Much less strong is} 72. Rxg6 Bd4 $14) 72... Re3 {[%emt 0:00:24] [#]} (72... Re1 $16 {might work better.}) 73. Bb5+ $1 $18 {[%emt 0:00:21]} Ke7 {[%emt 0:00:15]} 74. Rf7+ {[%emt 0:00:05]} Ke6 {[%emt 0:00:45] And now ...Rg3+ would win.} 75. Bd7+ {[%emt 0:00:12]} Kd6 {[%emt 0:00:18]} 76. Bg4 {[%emt 0:01:08] Strongly threatening h7.} Kc6 $2 {[%emt 0:00:46]} (76... Bd4 77. Rd7+ Kc5) 77. Rf6+ {[%emt 0:00:55]} Kd5 {[%emt 0:00:21]} (77... Kc7 $18 78. h7 Re8 79. Rf7+ Kd6 80. Rd7+ Kc6) 78. h7 {[%emt 0:00:09]} Re8 {[%emt 0:00:16] [#]} 79. Be6+ $1 {[%emt 0:00:06][%mdl 512]} 1-0

[Event "98th Caplin Hastings Masters 2024-25"]
[Site "Hastings"]
[Date "2025.01.01"]
[Round "7.8"]
[White "Grutter, Tim"]
[Black "Samarasinghe Jude, Ranga"]
[Result "1-0"]
[ECO "B01"]
[WhiteElo "2379"]
[BlackElo "1944"]
[Annotator "TA"]
[PlyCount "87"]
[EventDate "2024.12.23"]
[EventType "swiss"]
[EventCountry "ENG"]
[SourceTitle "playchess.com"]
[Source "ChessBase"]
[SourceQuality "1"]
[TimeControl "5400+30"]

{[%evp 13,87,42,77,64,70,54,61,35,67,68,62,3,75,66,133,41,35,44,26,38,36,-49,91,85,84,84,79,77,75,67,85,76,142,142,123,127,117,108,97,11,30,22,105,6,55,36,186,168,213,211,208,214,209,216,197,100,310,254,247,236,293,269,455,430,29980,29981,29981,29982,29982,29983,29983,29984,29984,29984,29988,29989]} 1. e4 {[%emt 0:00:03]} d5 {[%emt 0:01:06]} 2. exd5 {[%emt 0:00:07]} Nf6 {[%emt 0:00:05]} 3. d4 {[%emt 0:00:32]} Nxd5 {[%emt 0:00:05]} 4. Nf3 {[%emt 0:00:49]} Bg4 {[%emt 0:00:22]} 5. h3 {[%emt 0:01:37]} Bh5 {[%emt 0:00:55]} 6. g4 {[%emt 0:03:29]} Bg6 {[%emt 0:00:06]} 7. Ne5 {[%emt 0:00:51]} Nd7 {[%emt 0:01:12]} 8. Nxg6 {[%emt 0:02:20]} hxg6 {[%emt 0:00:05]} 9. Bg2 {[%emt 0:00:41]} c6 {[%emt 0:01:19]} 10. c4 {[%emt 0:05:15] White is slightly better.} N5b6 {[%emt 0:00:06]} 11. Qe2 {[%emt 0:01:33]} e5 {[%emt 0:07:57]} 12. dxe5 {[%emt 0:03:38]} (12. c5 $14 Nd5 13. Bxd5 (13. dxe5 Nxc5 14. O-O Ne6 $11) 13... cxd5 14. Be3) 12... Bb4+ {[%emt 0:00:06]} (12... Nc5 $1 $11 13. Nc3 (13. O-O Qd3 $11) 13... Qd4) 13. Bd2 $16 {[%emt 0:02:59]} Nc5 {[%emt 0:00:05]} 14. O-O {[%emt 0:13:05]} (14. Bxb4 $16 Nd3+ 15. Kf1 Nxb4 16. Nc3) 14... Qd3 $14 {[%emt 0:08:55]} 15. Qxd3 {[%emt 0:04:28]} Nxd3 {[%emt 0:00:08]} 16. Bxb4 {[%emt 0:03:11]} Nxb4 {[%emt 0:00:05] A dynamic duo of knights.} 17. Na3 {[%emt 0:04:39] Repels Nc2} (17. Nc3 $14) 17... O-O-O {[%emt 0:00:15]} (17... Na4 $15) 18. c5 $1 $36 {[%emt 0:01:58][%mdl 2048] White is on the roll.} Nd7 {[%emt 0:07:51]} 19. Nc4 {[%emt 0:00:36]} Kc7 {[%emt 0:00:07]} 20. a3 {[%emt 0:10:38]} Nd3 {[%emt 0:00:27]} 21. Nd6 $1 {[%emt 0:02:23]} Rdf8 {[%emt 0:00:34]} 22. b4 {[%emt 0:02:39]} Nf4 {[%emt 0:01:52]} ({Better is} 22... g5) 23. Rfe1 {[%emt 0:04:13]} Nxh3+ {[%emt 0:05:59]} 24. Bxh3 {[%emt 0:01:07]} Rxh3 {[%emt 0:00:04]} 25. Kg2 {[%emt 0:01:07]} Rd3 {[%emt 0:21:25]} 26. f4 {[%emt 0:01:57] White is more active.} (26. e6 $1 $16 {[%cal Re6e7]} fxe6 27. Rxe6) 26... g5 $11 {[%emt 0:08:08]} 27. fxg5 {[%emt 0:04:43][%cal Og5g6] g6! would now be deadly.} Rh8 {[%emt 0:01:49]} (27... g6 $11 {remains equal.}) 28. Rh1 {[%emt 0:06:35]} (28. Nxf7 $6 Rhh3 $11) (28. Ra2 $16 {[%cal Oa2f2] Black must now prevent Rf2!} Rhh3 29. Ne8+ Kc8 (29... Kd8 $2 30. Nxg7 Nf8 31. Rd2 $16) 30. g6 (30. Nxg7 Rdg3+ 31. Kf2 Rd3 $16) (30. Nd6+ Kc7 $16) 30... Rdg3+ 31. Kf2) 28... Rd2+ {[%emt 0:00:16]} (28... Rxh1 $11 29. Rxh1 Nxe5) 29. Kg3 $14 {[%emt 0:00:18]} Rd3+ {[%emt 0:00:58]} (29... Rxh1 $14 30. Rxh1 Nxe5) 30. Kf4 $18 {[%emt 0:00:53]} Rd4+ {[%emt 0:00:11]} 31. Ke3 {[%emt 0:00:34]} Rxh1 {[%emt 0:00:21]} 32. Rxh1 {[%emt 0:00:02]} Rxg4 {[%emt 0:00:09]} 33. Nxf7 {[%emt 0:00:17][%mdl 4096] Endgame. And now e6 would win. KRN-KRN} Nf8 {[%emt 0:01:10][%cal Oa7a5] [#]} 34. Kf3 {[%emt 0:02:22]} (34. Rd1 $1 $18) 34... Rc4 $2 {[%emt 0:00:48]} (34... Rd4 $16 {was worth a try.}) 35. Rd1 {[%emt 0:01:18] Nd6 is the strong threat.} a5 {[%emt 0:01:29]} 36. Rd8 {[%emt 0:03:34]} (36. bxa5 Rxc5 37. a6 bxa6 $11) 36... Ne6 {[%emt 0:00:16] [#]} 37. Rd6 {[%emt 0:00:25]} axb4 $2 {[%emt 0:02:57]} (37... Rf4+ 38. Ke3 Rxf7 39. Rxe6 Rf5 40. Re7+ (40. bxa5 g6 $18) 40... Kb8) 38. Rxe6 {[%emt 0:02:52] KRN-KR} b3 {[%emt 0:00:05]} (38... bxa3 $18 39. Re7+ Kb8 40. Re8+ (40. Nd6 Rc3+ 41. Kf4 a2 $11) 40... Ka7) 39. Re7+ {[%emt 0:00:08] White mates.} Kb8 {[%emt 0:00:04] [#]} 40. Rxb7+ $3 {[%emt 0:00:04][%mdl 512]} Kxb7 {[%emt 0:03:06]} 41. Nd6+ {[%emt 0:00:05]} Ka6 {[%emt 0:00:09]} 42. Nxc4 {[%emt 0:00:04]} Kb5 {[%emt 0:00:06]} 43. Nd2 {[%emt 0:00:24]} b2 {[%emt 0:00:25]} 44. e6 {[%emt 0:00:05] Weighted Error Value: White=0.23 (precise) /Black=0.60.  Loses game:     	---       	Black=1      Mistake:       	White=6     	Black=9      Inaccurate:     	White=1     	Black=1      OK:         	White=9     	Black=14     Best:        	White=6     	---        Strong:       	White=2     	---} 1-0

[Event "98th Caplin Hastings Masters 2024-25"]
[Site "Hastings"]
[Date "2025.01.01"]
[Round "7.9"]
[White "Lux, Hugo de Melo"]
[Black "Siva Mahadevan"]
[Result "1-0"]
[ECO "B53"]
[WhiteElo "2327"]
[BlackElo "2349"]
[Annotator "TA"]
[PlyCount "79"]
[EventDate "2024.12.23"]
[EventType "swiss"]
[EventCountry "ENG"]
[SourceTitle "playchess.com"]
[Source "ChessBase"]
[SourceQuality "1"]
[TimeControl "5400+30"]

{[%evp 9,79,14,6,0,10,0,12,8,0,0,5,0,7,0,0,0,19,16,52,26,22,16,97,39,29,14,29,0,7,-20,37,-43,0,0,29,17,322,284,291,308,312,298,356,367,452,420,491,500,634,422,453,439,485,483,539,547,560,547,548,559,525,509,574,579,1041,992,1704,1571,29983,29983,29988,29989]} 1. e4 {[%emt 0:08:04]} c5 {[%emt 0:00:10]} 2. Nf3 {[%emt 0:00:09]} d6 {[%emt 0:00:09]} 3. d4 {[%emt 0:00:03]} cxd4 {[%emt 0:00:07]} 4. Qxd4 {[%emt 0:00:04]} Nc6 {[%emt 0:00:35]} 5. Qe3 {[%emt 0:00:04]} g6 {[%emt 0:00:44]} 6. Be2 {[%emt 0:00:16]} Bg7 {[%emt 0:00:51]} 7. O-O {[%emt 0:00:07]} Nf6 {[%emt 0:01:00]} 8. h3 {[%emt 0:00:05] The position is equal.} O-O {[%emt 0:00:39]} 9. Rd1 {[%emt 0:00:04]} Nd7 {[%emt 0:00:43]} 10. Nc3 {[%emt 0:01:01]} b6 {[%emt 0:01:18]} 11. Qf4 {[%emt 0:00:34]} Bb7 {[%emt 0:16:32]} 12. Qh4 {[%emt 0:00:06]} Nc5 {[%emt 0:05:55]} 13. Bh6 {[%emt 0:10:30]} e6 {[%emt 0:04:44] aiming for ...Qxh4.} (13... Bf6 {is interesting.} 14. Ng5 Re8 15. Bc4 Ne5) 14. Bg5 {[%emt 0:19:05]} f6 {[%emt 0:00:54]} 15. Be3 {[%emt 0:00:11]} a6 {[%emt 0:06:59] Prevents Nb5.} (15... f5 $11) 16. Rab1 {[%emt 0:08:29] White has more active pieces.} (16. Qg3 $16) 16... Qc7 {[%emt 0:15:55]} 17. Qg3 {[%emt 0:10:29][%cal Ob2b4]} Ne5 $1 {[%emt 0:03:18]} 18. Nd4 {[%emt 0:02:40]} Rae8 {[%emt 0:08:16][%cal Ob6b5]} 19. f4 {[%emt 0:00:11]} Nc6 {[%emt 0:08:11]} (19... Nf7 $11) 20. Bf3 {[%emt 0:22:09]} (20. f5 $14) 20... f5 {[%emt 0:04:56]} 21. exf5 {[%emt 0:02:32] Strongly threatening Nxc6.} gxf5 {[%emt 0:01:28]} 22. b4 $36 {[%emt 0:04:14][%mdl 2048] White has some pressure.} Nd7 {[%emt 0:03:54][%mdl 8192] [#] Loses the game.} (22... Nxd4 $1 $11 {and Black is okay.} 23. Bxd4 Bxf3 24. Qxf3 Nd7) 23. Ndb5 $1 {[%emt 0:02:47][%mdl 512]} axb5 {[%emt 0:01:26]} 24. Nxb5 {[%emt 0:00:02]} Qb8 {[%emt 0:04:20]} 25. Nxd6 {[%emt 0:00:05]} Re7 {[%emt 0:01:31] [#]} 26. Nxb7 {[%emt 0:00:30]} Na7 {[%emt 0:00:39]} 27. Nd6 {[%emt 0:01:10]} Kh8 {[%emt 0:00:17]} 28. c4 {[%emt 0:03:32]} e5 {[%emt 0:02:24]} 29. fxe5 {[%emt 0:01:37]} Nxe5 {[%emt 0:01:11]} 30. Bf4 {[%emt 0:03:06]} Nc8 {[%emt 0:00:18]} 31. c5 {[%emt 0:00:40]} bxc5 {[%emt 0:00:18]} 32. bxc5 {[%emt 0:00:16]} Qa7 {[%emt 0:00:34]} 33. Kh1 {[%emt 0:00:41]} Ng6 {[%emt 0:00:47]} 34. Nxc8 {[%emt 0:00:25]} Rxc8 {[%emt 0:00:01]} 35. Bd6 {[%emt 0:00:08]} Re3 {[%emt 0:00:57]} 36. Qg5 {[%emt 0:00:55]} f4 {[%emt 0:00:55]} 37. c6 {[%emt 0:00:46][%cal Bc5c6,Bc6c7][%mdl 32] And now c7 would win.} Rg8 {[%emt 0:02:15]} 38. c7 {[%emt 0:00:39] Threatens to win with Rb8.} Rxf3 {[%emt 0:01:41]} 39. gxf3 {[%emt 0:00:38]} Qe3 {[%emt 0:00:09]} 40. Qd5 {[%emt 0:00:23] Weighted Error Value: White=0.21 (precise) /Black=0.58.  Loses game:     	---       	Black=1      Mistake:       	White=2     	Black=2      Inaccurate:     	White=4     	Black=5      OK:         	White=12    	Black=9      Strong:       	---       	Black=1} 1-0